bitfinex-derivatives/quotes_BTCF0:USTF0_20250527
["timestamp","ask_amount","ask_price","bid_price","bid_amount"]
[1748315849656,1.82025943,109350.0,109340.0,0.8416]
[1748315849859,1.32013943,109350.0,109340.0,0.6068]
[1748315850150,2.23237943,109350.0,109340.0,0.6068]
[1748315850456,2.23237943,109350.0,109340.0,0.6088]
[1748315850957,0.1828544,109350.0,109340.0,0.7368]
[1748315851257,0.3288744,109350.0,109340.0,0.7368]
[1748315851463,0.3287544,109350.0,109340.0,0.7368]
[1748315851663,0.3298744,109350.0,109340.0,0.7348]
[1748315851850,0.57070233,109350.0,109340.0,0.7348]
[1748315852159,1.71453943,109350.0,109340.0,0.618]
[1748315852460,1.30241943,109350.0,109340.0,0.618]
[1748315852760,3.28391919,109350.0,109340.0,0.13]
[1748315852956,0.1828642,109340.0,109330.0,0.0001375]
[1748315853156,0.65540923,109340.0,109330.0,0.0001375]
[1748315853349,0.65540923,109340.0,109320.0,0.3608]
[1748315853350,0.1828809,109330.0,109320.0,0.3608]
[1748315853659,0.1829478,109290.0,109280.0,0.36217243]
[1748315853852,1.17393283,109290.0,109280.0,0.48217243]
[1748315854253,1.17393283,109290.0,109280.0,0.66513703]
[1748315854557,1.17393283,109290.0,109280.0,0.48217243]
[1748315854758,1.17393283,109290.0,109280.0,0.66513703]
[1748315855158,1.17832465,109290.0,109280.0,0.66513703]
[1748315855554,1.17832465,109290.0,109280.0,0.67013703]
[1748315855860,1.25572465,109290.0,109280.0,0.67013693]
[1748315856160,1.32632465,109290.0,109280.0,0.67013693]
[1748315856360,1.32632465,109290.0,109280.0,0.67413703]
[1748315856361,0.60023182,109290.0,109280.0,0.67413703]
[1748315856561,0.78317972,109290.0,109280.0,0.74763703]
[1748315856749,0.85377972,109290.0,109280.0,0.38683703]
[1748315856952,0.85389972,109290.0,109280.0,0.74763703]
[1748315857753,1.32644475,109290.0,109280.0,0.13037243]
[1748315857952,1.68724475,109290.0,109280.0,0.13037243]
[1748315858153,0.67095182,109290.0,109280.0,0.67413703]
[1748315858353,1.26581972,109290.0,109280.0,0.67413703]
[1748315858659,1.50664765,109290.0,109280.0,0.67413703]
[1748315860060,1.86744765,109290.0,109280.0,0.13037243]
[1748315860364,2.04082164,109290.0,109280.0,0.13037243]
[1748315861157,1.62890164,109290.0,109280.0,0.13037243]
[1748315861358,0.80800475,109290.0,109280.0,0.31333693]
[1748315861557,0.91165975,109290.0,109280.0,0.67413693]
[1748315861759,1.50648755,109290.0,109280.0,0.67413693]
[1748315862058,1.50648755,109290.0,109280.0,0.31333693]
[1748315862257,1.73820465,109290.0,109280.0,0.31333693]
[1748315862461,2.09900465,109290.0,109280.0,0.13037243]
[1748315863256,2.09900465,109290.0,109280.0,0.31333693]
[1748315863558,2.26906441,109290.0,109280.0,0.13037243]
[1748315863760,0.1829645,109280.0,109270.0,0.0001375]
[1748315863963,0.1830147,109250.0,109240.0,0.25510464]
[1748315864158,0.8266118,109250.0,109240.0,0.13137314]
[1748315864359,1.20923973,109250.0,109240.0,0.13137314]
[1748315864861,1.74009949,109250.0,109240.0,0.00137314]
[1748315865060,1.74009949,109250.0,109240.0,0.31440464]
[1748315865061,0.61434503,109250.0,109240.0,0.31440464]
[1748315865268,0.0001375,109260.0,109250.0,0.1830147]
[1748315865459,0.0001375,109260.0,109250.0,0.8196147]
[1748315865659,0.0002575,109260.0,109250.0,0.8196147]
[1748315865862,1.58604053,109260.0,109250.0,0.7445147]
[1748315866164,1.72784053,109260.0,109250.0,0.13]
[1748315866661,0.1830148,109250.0,109240.0,0.01137314]
[1748315866867,0.1830148,109250.0,109240.0,0.02137314]
[1748315866868,0.5660319,109250.0,109240.0,0.02137314]
[1748315867066,1.16765983,109250.0,109240.0,0.02137314]
[1748315867362,1.16765983,109250.0,109240.0,0.00537314]
[1748315867767,1.16765983,109250.0,109240.0,0.00137314]
[1748315868666,0.1830316,109240.0,109230.0,0.0001375]
[1748315868865,1.67565639,109240.0,109230.0,0.0001375]
[1748315869068,2.71373639,109240.0,109230.0,0.0001375]
[1748315869661,2.54367663,109240.0,109230.0,0.0001375]
[1748315869856,2.11878479,109240.0,109230.0,0.1831858]
[1748315870059,2.70127663,109240.0,109230.0,0.0001375]
[1748315870261,0.0457646,109230.0,109210.0,0.1830818]
[1748315870571,0.6436371,109220.0,109210.0,0.6096521]
[1748315871067,0.95526503,109220.0,109210.0,0.6096521]
[1748315871256,0.95526503,109220.0,109210.0,0.6836521]
[1748315871564,0.95526503,109220.0,109210.0,0.6866521]
[1748315871769,1.03076503,109220.0,109210.0,0.73555746]
[1748315872164,1.54928503,109220.0,109210.0,0.73555746]
[1748315872670,1.54928503,109220.0,109210.0,0.61601294]
[1748315872873,0.61884503,109220.0,109210.0,0.79908874]
[1748315873072,0.5963775,109230.0,109220.0,0.1830651]
[1748315873262,1.73717093,109230.0,109220.0,0.8350651]
[1748315873462,2.09809093,109230.0,109220.0,0.14]
[1748315873662,1.73729093,109230.0,109220.0,0.3230651]
[1748315873861,1.73729093,109230.0,109220.0,0.3997651]
[1748315874266,1.73729093,109230.0,109220.0,0.143]
[1748315874475,2.09813093,109230.0,109220.0,0.146]
[1748315874677,2.09813093,109230.0,109220.0,0.3290651]
[1748315874870,1.16765093,109230.0,109220.0,0.3290651]
[1748315875172,1.73733093,109230.0,109220.0,0.3290651]
[1748315875373,0.80685093,109230.0,109220.0,0.4057651]
[1748315875565,1.73733093,109230.0,109220.0,0.2657651]
[1748315875765,1.73733093,109230.0,109220.0,0.3857651]
[1748315875974,1.73733083,109230.0,109220.0,0.3857651]
[1748315876472,1.67883026,109230.0,109220.0,0.2657651]
[1748315876677,1.67895026,109230.0,109220.0,0.2657651]
[1748315876879,1.67895026,109230.0,109220.0,0.4057651]
[1748315877066,1.67895026,109230.0,109220.0,0.2227]
[1748315877471,1.67895026,109230.0,109220.0,0.4057651]
[1748315877967,1.67895026,109230.0,109220.0,0.24367254]
[1748315878878,1.67895026,109230.0,109220.0,0.28932359]
[1748315879373,1.67895026,109230.0,109220.0,0.10625849]
[1748315879874,2.03975026,109230.0,109220.0,0.10625849]
[1748315880075,2.03975026,109230.0,109220.0,0.28932359]
[1748315880673,2.03975026,109230.0,109220.0,0.10625849]
[1748315881679,2.03975026,109230.0,109220.0,0.28932359]
[1748315882773,0.00452932,109240.0,109220.0,0.65391449]
[1748315882982,0.23047508,109280.0,109260.0,0.182998]
[1748315883282,1.00336769,109270.0,109260.0,0.12]
[1748315883469,2.19395562,109270.0,109260.0,0.12]
[1748315883793,2.19407562,109270.0,109260.0,0.12]
[1748315884482,2.19846744,109270.0,109260.0,0.12]
[1748315884779,2.14538345,109270.0,109260.0,0.12]
[1748315885782,2.14838345,109270.0,109260.0,0.12]
[1748315886077,1.37554345,109270.0,109260.0,0.22560758]
[1748315886285,2.14838345,109270.0,109260.0,0.22560758]
[1748315886475,2.22558345,109270.0,109260.0,0.22560758]
[1748315887872,0.0457495,109260.0,109230.0,0.36981154]
[1748315888078,0.4147487,109240.0,109230.0,0.13901154]
[1748315888577,1.02198092,109240.0,109230.0,0.13]
[1748315888787,1.09418092,109240.0,109230.0,0.13]
[1748315890172,2.02154092,109240.0,109230.0,0.131]
[1748315890575,2.02154092,109240.0,109230.0,0.132]
[1748315890975,1.09418092,109240.0,109230.0,0.132]
[1748315891175,2.02154092,109240.0,109230.0,0.002]
[1748315891376,0.1830818,109210.0,109200.0,0.54503087]
[1748315891578,0.5951218,109210.0,109200.0,0.67503087]
[1748315891777,1.49552208,109210.0,109200.0,0.23913087]
[1748315891979,1.49552208,109210.0,109200.0,0.10913087]
[1748315892181,1.66558184,109210.0,109200.0,0.10913087]
[1748315893089,1.66558184,109210.0,109200.0,0.10137364]
[1748315893281,1.66558184,109210.0,109200.0,0.10337364]
[1748315893477,0.3609375,109220.0,109200.0,0.7350054]
[1748315893774,0.05608399,109230.0,109220.0,0.1830651]
[1748315893979,0.05608399,109230.0,109220.0,0.6638651]
[1748315894178,0.05620399,109230.0,109220.0,0.8305211]
[1748315894379,0.00012,109230.0,109220.0,0.83827833]
[1748315894782,0.0001375,109240.0,109230.0,0.1830483]
[1748315894982,0.0001375,109240.0,109230.0,0.6638483]
[1748315895184,0.0002575,109240.0,109230.0,0.7386483]
[1748315895787,0.0002575,109240.0,109230.0,0.74640553]
[1748315896488,0.0022575,109240.0,109230.0,0.74640553]
[1748315897078,0.187289,109240.0,109230.0,0.74640553]
[1748315897281,0.58218928,109240.0,109230.0,0.20255723]
[1748315897587,0.72548928,109240.0,109230.0,0.38760553]
[1748315898087,1.08628928,109240.0,109230.0,0.12975723]
[1748315898478,1.08628928,109240.0,109230.0,0.122]
[1748315898679,1.08628928,109240.0,109230.0,0.12]
[1748315898680,1.08828928,109240.0,109230.0,0.12]
[1748315899384,0.1830483,109230.0,109220.0,0.19082223]
[1748315899579,0.9721054,109230.0,109220.0,0.38122223]
[1748315899775,0.30848318,109230.0,109220.0,0.373465]
[1748315899982,0.42193148,109230.0,109220.0,0.734265]
[1748315900290,0.83409148,109230.0,109220.0,0.734265]
[1748315901382,0.83509148,109230.0,109220.0,0.734265]
[1748315901583,0.90879148,109230.0,109220.0,0.734265]
[1748315902187,0.90979148,109230.0,109220.0,0.734265]
[1748315902890,0.6729083,109230.0,109220.0,0.734265]
[1748315903085,0.00212,109230.0,109220.0,0.734265]
[1748315903293,0.1851683,109230.0,109220.0,0.734265]
[1748315903486,0.3407483,109230.0,109220.0,0.734265]
[1748315903685,0.3408683,109230.0,109220.0,0.734265]
[1748315904788,0.50405148,109230.0,109220.0,0.734265]
[1748315904986,0.73576858,109230.0,109220.0,0.734265]
[1748315906390,1.14780858,109230.0,109220.0,0.83717002]
[1748315907388,1.50860858,109230.0,109220.0,0.22290502]
[1748315907594,1.14780858,109230.0,109220.0,0.22290502]
[1748315907785,1.14780858,109230.0,109220.0,0.40597002]
[1748315908289,1.14780858,109230.0,109220.0,0.47977002]
[1748315908290,1.50860858,109230.0,109220.0,0.47977002]
[1748315909284,1.50860858,109230.0,109220.0,0.22290502]
[1748315910890,1.50860858,109230.0,109220.0,0.06031464]
[1748315911094,1.50860858,109230.0,109220.0,0.12031464]
[1748315911895,1.62599936,109230.0,109220.0,0.12031464]
[1748315913995,1.21395936,109230.0,109220.0,0.12031464]
[1748315914194,1.62603936,109230.0,109220.0,0.12031464]
[1748315915099,1.62603936,109230.0,109220.0,0.13331506]
[1748315915998,1.63043118,109230.0,109220.0,0.13331506]
[1748315918906,1.26963118,109230.0,109220.0,0.13331506]
[1748315919201,1.63043118,109230.0,109220.0,0.13331506]
[1748315919995,1.21835118,109230.0,109220.0,0.13331506]
[1748315920304,1.5130404,109230.0,109220.0,0.13331506]
[1748315920501,1.63043118,109230.0,109220.0,0.13331506]
[1748315922401,2.12655118,109230.0,109220.0,0.13331506]
[1748315923997,1.21835118,109230.0,109220.0,0.13331506]
[1748315924197,1.1009604,109230.0,109220.0,0.31638006]
[1748315924403,0.325395,109230.0,109220.0,0.31638006]
[1748315924704,1.1522804,109230.0,109220.0,0.75138006]
[1748315924906,1.5130804,109230.0,109220.0,0.13331506]
[1748315925202,1.5129604,109230.0,109220.0,0.13331506]
[1748315925606,1.5130804,109230.0,109220.0,0.13331506]
[1748315925821,1.5129604,109230.0,109220.0,0.13331506]
[1748315926001,1.63047118,109230.0,109220.0,0.13331506]
[1748315926202,0.4147821,109220.0,109210.0,0.0051439]
[1748315926503,0.9266821,109220.0,109210.0,0.3082257]
[1748315926707,1.08986528,109220.0,109210.0,0.1251439]
[1748315926893,1.08986528,109220.0,109210.0,0.3082257]
[1748315927101,1.08986528,109220.0,109210.0,0.3826257]
[1748315927298,1.08986528,109220.0,109210.0,0.1995439]
[1748315927810,1.50198528,109220.0,109210.0,0.1995439]
[1748315928011,1.50198528,109220.0,109210.0,0.26861029]
[1748315928305,1.50198528,109220.0,109210.0,0.26446639]
[1748315929412,2.11553606,109220.0,109210.0,0.19006639]
[1748315930207,2.11992788,109220.0,109210.0,0.19006639]
[1748315930409,2.0025371,109220.0,109210.0,0.19006639]
[1748315930611,2.11992788,109220.0,109210.0,0.19006639]
[1748315930913,2.0025371,109220.0,109210.0,0.19006639]
[1748315931211,1.5904171,109220.0,109210.0,0.19006639]
[1748315931512,2.0025371,109220.0,109210.0,0.26156639]
[1748315931712,2.0025371,109220.0,109210.0,0.24737252]
[1748315932113,1.0942571,109220.0,109210.0,0.24737252]
[1748315932422,1.9840571,109220.0,109210.0,0.32277252]
[1748315934018,1.9840571,109220.0,109210.0,0.17587252]
[1748315934217,2.10144788,109220.0,109210.0,0.17587252]
[1748315937034,1.74064788,109220.0,109210.0,0.17587252]
[1748315937232,2.10144788,109220.0,109210.0,0.17587252]
[1748315938828,2.10144788,109220.0,109210.0,0.05587252]
[1748315939029,2.10144788,109220.0,109210.0,0.01746622]
[1748315939233,0.4147989,109210.0,109200.0,0.03062782]
[1748315939537,0.4148157,109200.0,109190.0,0.07663372]
[1748315939836,1.93594648,109200.0,109190.0,0.07663372]
[1748315940226,1.94510109,109200.0,109190.0,0.07663372]
[1748315941332,2.06249187,109200.0,109190.0,0.07663372]
[1748315941737,0.1831153,109190.0,109180.0,0.0001375]
[1748315942038,1.04482318,109190.0,109180.0,0.0001375]
[1748315943538,1.04582318,109190.0,109180.0,0.0001375]
[1748315943926,1.10190717,109190.0,109180.0,0.0001375]
[1748315944126,1.10290717,109190.0,109180.0,0.0001375]
[1748315944733,1.10190717,109190.0,109180.0,0.0001375]
[1748315944937,1.10690717,109190.0,109180.0,0.0001375]
[1748315945335,1.11129899,109190.0,109180.0,0.04413339]
[1748315945539,1.11229899,109190.0,109180.0,0.04413339]
[1748315946236,0.1831489,109170.0,109160.0,0.218]
[1748315946436,1.78313678,109170.0,109160.0,0.2746]
[1748315946734,1.93333678,109170.0,109160.0,0.2746]
[1748315947437,1.93433678,109170.0,109160.0,0.2746]
[1748315947635,1.456146,109170.0,109160.0,0.2746]
[1748315947835,1.57353678,109170.0,109160.0,0.2746]
[1748315948133,1.93533678,109170.0,109160.0,0.2746]
[1748315949942,1.93533678,109170.0,109160.0,0.32646911]
[1748315950343,1.93537678,109170.0,109160.0,0.18186911]
[1748315950848,1.93537678,109170.0,109160.0,0.33426911]
[1748315953540,0.002,109170.0,109160.0,0.99562559]
[1748315953745,0.5974289,109170.0,109160.0,0.99562559]
[1748315953940,0.5974289,109170.0,109160.0,0.2824]
[1748315953941,0.71493968,109170.0,109160.0,0.2824]
[1748315954144,1.38015678,109170.0,109160.0,0.2824]
[1748315954445,1.93433678,109170.0,109160.0,0.2045]
[1748315955939,1.93433678,109170.0,109160.0,0.13]
[1748315956546,0.1831657,109160.0,109150.0,0.1472117]
[1748315956743,0.96807358,109160.0,109150.0,0.2672117]
[1748315957148,1.04627358,109160.0,109150.0,0.2672117]
[1748315958250,1.04627358,109160.0,109150.0,0.1215117]
[1748315960547,1.0506654,109160.0,109150.0,0.1215117]
[1748315961246,1.0506654,109160.0,109150.0,0.1201375]
[1748315962250,0.49427462,109160.0,109150.0,0.73732]
[1748315962457,1.36639462,109160.0,109150.0,0.2731375]
[1748315962653,1.36651462,109160.0,109150.0,0.2731375]
[1748315962951,1.36639462,109160.0,109150.0,0.2731375]
[1748315963257,1.36651462,109160.0,109150.0,0.2731375]
[1748315963754,0.5367854,109160.0,109150.0,0.2731375]
[1748315963951,0.9491454,109160.0,109150.0,0.2731375]
[1748315964148,1.0249454,109160.0,109150.0,0.2731375]
[1748315964960,1.0249454,109160.0,109150.0,0.3741871]
[1748315965754,1.0988454,109160.0,109150.0,0.3741871]
[1748315968462,1.4596454,109160.0,109150.0,0.3741871]
[1748315969159,1.57703618,109160.0,109150.0,0.2211871]
[1748315969859,1.4596454,109160.0,109150.0,0.2211871]
[1748315970662,1.58822939,109160.0,109150.0,0.2211871]
[1748315972262,1.70562017,109160.0,109150.0,0.2211871]
[1748315973362,1.78852616,109160.0,109150.0,0.2211871]
[1748315973964,1.5537446,109160.0,109150.0,0.2211871]
[1748315974154,1.67113538,109160.0,109150.0,0.2963871]
[1748315974463,1.1413846,109160.0,109150.0,0.3751871]
[1748315974665,1.69767538,109160.0,109150.0,0.3751871]
[1748315974963,1.10336939,109160.0,109150.0,0.3751871]
[1748315975170,1.97556939,109160.0,109150.0,0.3751871]
[1748315975565,1.97544939,109160.0,109150.0,0.3751871]
[1748315975763,1.10324939,109160.0,109150.0,0.3751871]
[1748315975967,1.90154939,109160.0,109150.0,0.3751871]
[1748315976169,1.55240151,109160.0,109150.0,0.5583695]
[1748315976464,1.14000151,109160.0,109150.0,0.3751871]
[1748315976671,1.55252151,109160.0,109150.0,0.3751871]
[1748315976969,1.49631752,109160.0,109150.0,0.37903898]
[1748315977157,1.49643752,109160.0,109150.0,0.56222138]
[1748315977364,1.49643752,109160.0,109150.0,0.37903898]
[1748315977861,1.57163752,109160.0,109150.0,0.37903898]
[1748315978159,1.9207454,109160.0,109150.0,0.43881204]
[1748315979067,1.0485854,109160.0,109150.0,0.43881204]
[1748315979271,1.9207454,109160.0,109150.0,0.43881204]
[1748315979465,1.9207454,109160.0,109150.0,0.44266392]
[1748315980370,1.80335462,109160.0,109150.0,0.44266392]
[1748315980561,1.9207454,109160.0,109150.0,0.44266392]
[1748315981262,2.03813618,109160.0,109150.0,0.16852642]
[1748315981473,2.11683618,109160.0,109150.0,0.11640763]
[1748315981862,2.19974217,109160.0,109150.0,0.11255575]
[1748315984475,2.08239139,109160.0,109150.0,0.23255575]
[1748315984674,2.08239139,109160.0,109150.0,0.31015575]
[1748315984861,2.13958098,109160.0,109150.0,0.31015575]
[1748315985068,2.13946098,109160.0,109150.0,0.38735575]
[1748315985270,2.13958098,109160.0,109150.0,0.38735575]
[1748315985471,2.13946098,109160.0,109150.0,0.38735575]
[1748315986274,2.13958098,109160.0,109150.0,0.31831882]
[1748315986774,1.26738098,109160.0,109150.0,0.31808489]
[1748315986968,2.13958098,109160.0,109150.0,0.31808489]
[1748315987370,1.26738098,109160.0,109150.0,0.31808489]
[1748315987677,0.11061586,109180.0,109170.0,0.1831488]
[1748315987973,0.11061586,109180.0,109170.0,1.0247488]
[1748315988173,0.11061586,109180.0,109170.0,1.1735488]
[1748315988174,0.11073586,109180.0,109170.0,1.1735488]
[1748315988379,0.11073586,109180.0,109170.0,0.8127488]
[1748315988972,0.0002575,109180.0,109170.0,0.8270389]
[1748315989279,0.30178038,109180.0,109170.0,0.27396827]
[1748315989581,0.37998038,109180.0,109170.0,0.45711717]
[1748315989767,0.0804575,109180.0,109170.0,0.45711717]
[1748315989963,0.49620932,109180.0,109170.0,0.81791717]
[1748315990577,0.49620932,109180.0,109170.0,0.81661622]
[1748315990774,0.67934142,109180.0,109170.0,0.81661622]
[1748315991077,0.67834142,109180.0,109170.0,0.81661622]
[1748315991275,0.67834142,109180.0,109170.0,0.82565361]
[1748315991486,0.11047836,109220.0,109210.0,0.1830818]
[1748315991674,0.11047836,109220.0,109210.0,0.87283658]
[1748315991981,0.32672308,109230.0,109220.0,0.183065]
[1748315992165,0.32672308,109230.0,109220.0,0.61819078]
[1748315992166,0.50977138,109230.0,109220.0,0.61819078]
[1748315992373,1.51460848,109230.0,109220.0,0.2253]
[1748315992582,0.183065,109220.0,109210.0,0.0001375]
[1748315992778,1.49979288,109220.0,109210.0,0.0001375]
[1748315993075,1.3824021,109220.0,109210.0,0.0001375]
[1748315993269,1.50079288,109220.0,109210.0,0.0001375]
[1748315993473,1.49779288,109220.0,109210.0,0.0001375]
[1748315993877,1.50179288,109220.0,109210.0,0.0001375]
[1748315994379,1.50079288,109220.0,109210.0,0.0001375]
[1748315995177,1.05647288,109220.0,109210.0,0.0001375]
[1748315995373,1.91703288,109220.0,109210.0,0.0001375]
[1748315995775,1.91703288,109220.0,109210.0,1.14297408]
[1748315995776,0.008,109220.0,109210.0,1.14297408]
[1748315995975,0.11061586,109240.0,109230.0,0.1830483]
[1748315996277,0.11061586,109240.0,109230.0,1.25358308]
[1748315996576,0.11061586,109240.0,109230.0,0.8616]
[1748315996771,0.52301586,109240.0,109230.0,1.2074483]
[1748315996966,1.06684736,109240.0,109230.0,0.3028]
[1748315997175,0.00689586,109240.0,109230.0,1.005144]
[1748315997379,0.1830264,109250.0,109240.0,0.1830315]
[1748315997574,0.1830264,109250.0,109240.0,1.02632228]
[1748315997988,0.5952264,109250.0,109240.0,0.9089315]
[1748315998183,1.1461464,109250.0,109240.0,0.7259]
[1748315998383,1.1461464,109250.0,109240.0,0.9089315]
[1748315998985,0.2672264,109250.0,109240.0,0.9089315]
[1748315999181,1.1461464,109250.0,109240.0,0.6436]
[1748315999388,1.2325464,109250.0,109240.0,0.6436]
[1748315999586,1.8250635,109250.0,109240.0,0.2059]
[1748315999981,1.5446635,109250.0,109240.0,0.2069]
[1748316000180,2.0651035,109250.0,109240.0,0.2069]
[1748316000484,2.9439435,109250.0,109240.0,0.2069]
[1748316001382,2.0651035,109250.0,109240.0,0.2069]
[1748316001579,3.06129428,109250.0,109240.0,0.121]
[1748316001787,3.06129428,109250.0,109240.0,0.001]
[1748316001980,3.15283028,109250.0,109240.0,0.001]
[1748316002986,0.1830315,109240.0,109230.0,0.05764142]
[1748316003189,1.05773938,109240.0,109230.0,0.16764142]
[1748316003889,1.46989938,109240.0,109230.0,0.16764142]
[1748316004193,1.47389938,109240.0,109230.0,0.16764142]
[1748316004990,1.3565086,109240.0,109230.0,0.16764142]
[1748316005295,1.4782912,109240.0,109230.0,0.16764142]
[1748316005682,1.4782912,109240.0,109230.0,0.1101375]
[1748316005993,1.4822912,109240.0,109230.0,0.0001375]
[1748316006195,1.94122598,109240.0,109230.0,1e-07]
[1748316006390,0.1830483,109230.0,109220.0,3e-08]
[1748316006695,1.06611218,109230.0,109220.0,3e-08]
[1748316007487,0.97455618,109230.0,109220.0,3e-08]
[1748316007692,1.06611218,109230.0,109220.0,3e-08]
[1748316007889,1.06611218,109230.0,109200.0,0.04569378]
[1748316007890,0.1830818,109210.0,109200.0,0.04569378]
[1748316008101,2.13250965,109210.0,109200.0,0.04569378]
[1748316008282,2.30378165,109210.0,109200.0,0.04569378]
[1748316009087,0.1830985,109200.0,109190.0,0.00146537]
[1748316009292,2.12873713,109200.0,109190.0,0.00146537]
[1748316009490,2.22031713,109200.0,109190.0,0.00146537]
[1748316010597,2.22031713,109200.0,109190.0,7e-08]
[1748316011096,0.1831152,109190.0,109180.0,0.05750392]
[1748316011394,1.46468305,109190.0,109180.0,0.05750392]
[1748316011786,0.1831489,109170.0,109160.0,0.14946621]
[1748316012095,1.78095104,109170.0,109160.0,0.12629355]
[1748316012292,1.94855104,109170.0,109160.0,0.05725662]
[1748316012482,2.30935104,109170.0,109160.0,0.05725662]
[1748316013088,2.30935104,109170.0,109160.0,0.06025662]
[1748316013288,2.30935104,109170.0,109160.0,0.06225662]
[1748316014800,0.6356527,109180.0,109160.0,0.65125139]
[1748316014997,0.6356527,109180.0,109170.0,0.1584]
[1748316015298,0.6413062,109180.0,109170.0,0.2884]
[1748316015499,0.6414262,109180.0,109170.0,0.2884]
[1748316015794,0.7206262,109180.0,109170.0,0.4715489]
[1748316016095,0.4670175,109180.0,109170.0,0.95073968]
[1748316016291,0.8792575,109180.0,109170.0,1.29233568]
[1748316016490,0.8791375,109180.0,109170.0,1.29333568]
[1748316016693,1.0623896,109180.0,109170.0,1.29333568]
[1748316016888,1.0623896,109180.0,109170.0,1.0843489]
[1748316017097,1.0623896,109180.0,109170.0,0.8343489]
[1748316019207,0.1833896,109180.0,109170.0,0.8343489]
[1748316019399,1.0623896,109180.0,109170.0,0.8343489]
[1748316020410,1.06678142,109180.0,109170.0,0.8343489]
[1748316021314,1.06678142,109180.0,109170.0,0.2904]
[1748316021703,1.14748142,109180.0,109170.0,0.40254672]
[1748316022819,1.85738927,109180.0,109170.0,0.32454672]
[1748316023013,1.93628927,109180.0,109170.0,0.32454672]
[1748316023819,1.93628927,109180.0,109170.0,0.11414672]
[1748316025413,1.93728927,109180.0,109170.0,0.11314672]
[1748316025615,1.93828927,109180.0,109170.0,0.11214672]
[1748316025819,2.97716927,109180.0,109170.0,0.11214672]
[1748316026623,0.1831489,109170.0,109160.0,0.0805]
[1748316026819,1.05655675,109170.0,109160.0,0.0805]
[1748316027222,0.41488277,109160.0,109150.0,0.0465322]
[1748316027418,1.92525355,109160.0,109150.0,0.1765322]
[1748316027621,1.69353648,109160.0,109150.0,0.1765322]
[1748316028523,1.92525355,109160.0,109150.0,0.1765322]
[1748316030224,1.92525355,109160.0,109150.0,0.17297289]
[1748316030415,1.92525355,109160.0,109150.0,0.25377289]
[1748316031929,0.6395656,109160.0,109150.0,0.48275059]
[1748316032115,1.1338856,109160.0,109150.0,0.56185059]
[1748316032313,1.1338856,109160.0,109150.0,0.51605529]
[1748316032918,0.7215656,109160.0,109150.0,0.51605529]
[1748316033125,1.1340056,109160.0,109150.0,0.51605529]
[1748316033425,1.2197056,109160.0,109150.0,0.51605529]
[1748316035625,1.22409742,109160.0,109150.0,0.51605529]
[1748316036825,1.22409742,109160.0,109150.0,0.51992261]
[1748316038028,1.22409742,109160.0,109150.0,0.33674021]
[1748316038921,1.22409742,109160.0,109150.0,0.51992261]
[1748316039226,1.22409742,109160.0,109150.0,0.33674021]
[1748316039421,1.22409742,109160.0,109140.0,0.64846821]
[1748316039622,0.183216,109130.0,109120.0,7e-08]
[1748316039828,2.12268385,109130.0,109120.0,0.13000007]
[1748316040122,0.1832327,109120.0,109110.0,0.09327313]
[1748316040321,0.1832327,109120.0,109110.0,0.25867313]
[1748316040322,1.39328054,109120.0,109110.0,0.25867313]
[1748316040720,1.39328054,109120.0,109110.0,0.09327313]
[1748316041228,1.47388054,109120.0,109110.0,0.09327313]
[1748316042020,1.47488054,109120.0,109110.0,0.09327313]
[1748316042624,1.47588054,109120.0,109110.0,0.09327313]
[1748316042825,1.55908054,109120.0,109110.0,0.09327313]
[1748316043316,1.55912054,109120.0,109110.0,0.09327313]
[1748316043713,1.44172976,109120.0,109110.0,0.09327313]
[1748316043927,1.55912054,109120.0,109110.0,0.09327313]
[1748316044828,0.3628,109120.0,109110.0,0.65817063]
[1748316045031,0.3628,109120.0,109110.0,0.74686806]
[1748316045227,0.00212,109120.0,109110.0,1.38638277]
[1748316045428,0.002,109120.0,109110.0,1.02558277]
[1748316045630,0.00212,109120.0,109110.0,1.38638277]
[1748316046132,0.0001375,109140.0,109130.0,0.183216]
[1748316046333,0.5957767,109140.0,109130.0,0.87070678]
[1748316046631,0.5958967,109140.0,109130.0,0.831416]
[1748316047329,0.0002575,109140.0,109130.0,0.923044]
[1748316047632,0.5958967,109140.0,109130.0,0.923044]
[1748316048326,0.9566967,109140.0,109130.0,0.2874]
[1748316048526,1.05916455,109140.0,109130.0,0.11221496]
[1748316048732,1.47160455,109140.0,109130.0,0.03411496]
[1748316049024,1.47160455,109140.0,109060.0,0.54557709]
[1748316049025,0.1833168,109070.0,109060.0,0.54557709]
[1748316049233,0.2292711,109080.0,109060.0,0.67558099]
[1748316049424,0.0001375,109080.0,109070.0,0.66150758]
[1748316049629,0.4125775,109080.0,109070.0,0.78150758]
[1748316049837,0.5958775,109080.0,109070.0,0.46168]
[1748316050023,1.0357975,109080.0,109070.0,0.6449968]
[1748316050223,1.0357975,109080.0,109070.0,0.12]
[1748316050429,1.1189975,109080.0,109070.0,0.12]
[1748316050632,1.1189975,109080.0,109070.0,0.3033168]
[1748316051033,1.1189975,109080.0,109070.0,0.3063168]
[1748316051233,1.1189975,109080.0,109070.0,0.126]
[1748316051631,1.1189975,109080.0,109070.0,0.2066]
[1748316052030,1.1189975,109080.0,109070.0,0.02664]
[1748316052226,1.1189975,109080.0,109050.0,8e-08]
[1748316052227,0.41505067,109060.0,109050.0,8e-08]
[1748316052433,0.41505067,109060.0,109050.0,7e-08]
[1748316052434,2.1763285,109060.0,109050.0,7e-08]
[1748316052635,2.2553285,109060.0,109050.0,0.10000007]
[1748316052833,1.3862485,109060.0,109050.0,7e-08]
[1748316053034,1.7987285,109060.0,109050.0,7e-08]
[1748316053333,0.41506747,109050.0,109040.0,0.0124067]
[1748316053536,0.85866747,109050.0,109040.0,0.0124067]
[1748316054329,1.0395504,109050.0,109040.0,0.0124067]
[1748316054730,1.27126747,109050.0,109040.0,0.0938067]
[1748316054936,1.27126747,109050.0,109040.0,0.0124067]
[1748316055133,1.4418653,109050.0,109040.0,0.0124067]
[1748316055337,1.9816853,109050.0,109040.0,0.0124067]
[1748316057034,1.9763253,109050.0,109040.0,0.1124067]
[1748316057341,1.9764053,109050.0,109040.0,0.3357738]
[1748316057640,1.29324823,109050.0,109040.0,0.0980067]
[1748316057834,1.29324823,109050.0,109040.0,0.3913738]
[1748316058241,1.29324823,109050.0,109040.0,0.2080067]
[1748316058441,1.29324823,109050.0,109040.0,0.3913739]
[1748316058442,1.29328823,109050.0,109040.0,0.3913739]
[1748316058735,1.29328823,109050.0,109040.0,0.3789672]
[1748316058939,1.29328823,109050.0,109040.0,0.2689672]
[1748316059442,0.1833672,109040.0,109030.0,0.3083184]
[1748316059642,0.7082672,109040.0,109030.0,0.5232184]
[1748316060946,0.7080528,109040.0,109030.0,0.5252184]
[1748316061242,1.1207328,109040.0,109030.0,0.5252184]
[1748316062240,1.12080489,109040.0,109030.0,0.5252184]
[1748316062437,1.1207328,109040.0,109030.0,0.5252184]
[1748316062635,1.12080489,109040.0,109030.0,0.5252184]
[1748316062838,1.1207328,109040.0,109030.0,0.5252184]